fUSD/lending_fUSD_20241024
["ID","MTS","AMOUNT","RATE_DAILY","PERIOD"]
[340734824,1729749060121,-40000.0,0.00059,120]
[340734825,1729749060130,-1000.0,0.00059,120]
[340734826,1729749060139,-5000.0,0.00059,120]
[340734827,1729749060148,-150.0,0.00059056,120]
[340734828,1729749060157,-1000.0,0.00059139,120]
[340734829,1729749060167,-2000.0,0.00059265,15]
[340734830,1729749060176,-200.0,0.00059265,15]
[340734831,1729749060187,-2000.0,0.00059265,15]
[340734832,1729749060196,-200.0,0.00059265,15]
[340734833,1729749060206,-756.83,0.00059315,60]
[340734834,1729749060220,-1500.0,0.00059398,30]
[340734835,1729749060231,-1439.05406125,0.0005946,30]
[340734836,1729749060241,-173.102414,0.00059498,120]
[340734837,1729749060252,-723.0,0.000595,30]
[340734838,1729749060262,-1500.0,0.00059502,30]
[340734839,1729749060272,-1500.0,0.00059525,30]
[340734840,1729749060281,-1500.0,0.00059533,30]
[340734841,1729749060290,-1500.0,0.0005959,30]
[340734842,1729749060299,-1500.0,0.00059597,30]
[340734843,1729749060309,-409.0,0.000596,50]
[340734844,1729749060319,-871.32907975,0.000596,30]
[340734845,1729749060329,-1500.0,0.0005962,30]
[340734846,1729749060338,-1500.0,0.0005962,30]
[340734847,1729749060348,-1500.0,0.00059629,30]
[340734848,1729749060357,-1500.0,0.00059635,30]
[340734849,1729749060367,-1500.0,0.00059636,30]
[340734850,1729749060376,-1500.0,0.00059656,30]
[340734851,1729749060386,-226.75377592,0.00059781,7]
[340734852,1729749060396,-1796.36,0.00059856,120]
[340734853,1729749060405,-2000.0,0.00059857,15]
[340734854,1729749060415,-200.0,0.00059857,15]
[340734855,1729749060424,-2000.0,0.00059857,15]
[340734856,1729749060434,-200.0,0.00059857,15]
[340734857,1729749060443,-2008.2082,0.00059872,2]
[340734858,1729749060453,-500.0,0.00059898,120]
[340734859,1729749060462,-539.08,0.00059898,120]
[340734860,1729749060474,-500.0,0.00059898,120]
[340734861,1729749060484,-500.0,0.00059899,120]
[340734862,1729749060494,-500.0,0.00059899,120]
[340734863,1729749060503,-500.0,0.00059899,120]
[340734864,1729749060512,-1786.86,0.00059899,120]
[340734865,1729749060522,-613.66,0.00059899,120]
[340734866,1729749060531,-75438.77015549,0.000599,60]
[340734867,1729749060540,-158.37903487,0.00059952,28]
[340734868,1729749060549,-832.96,0.00059988,120]
[340734869,1729749060558,-208.04297118,0.0005999,120]
[340734870,1729749060568,-150.0,0.0005999,120]
[340734871,1729749060577,-150.0,0.0005999,120]
[340734872,1729749060587,-176.4757217,0.0005999,7]
[340734873,1729749060596,-153.79598468,0.00059998,120]
[340734874,1729749060605,-500.0,0.00059999,120]
[340734875,1729749060614,-500.0,0.00059999,120]
[340734876,1729749060624,-677.9,0.00059999,120]
[340734877,1729749060633,-500.0,0.00059999,120]
[340734878,1729749060642,-500.0,0.00059999,120]
[340734879,1729749060652,-541.6,0.00059999,120]
[340734880,1729749060661,-715.04,0.00059999,120]
[340734881,1729749060670,-500.0,0.00059999,120]
[340734882,1729749060679,-1747.87,0.00059999,120]
[340734883,1729749060689,-916.98,0.00059999,120]
[340734884,1729749060698,-500.0,0.00059999,120]
[340734885,1729749060707,-624.11,0.00059999,120]
[340734886,1729749060717,-500.0,0.00059999,120]
[340734887,1729749060726,-719.38,0.00059999,120]
[340734888,1729749060735,-571.97,0.00059999,120]
[340734889,1729749060744,-1043.89,0.00059999,120]
[340734890,1729749060753,-1749.13,0.00059999,120]
[340734891,1729749060842,-500.0,0.00059999,120]
[340734892,1729749060861,-500.0,0.00059999,120]
[340734893,1729749060872,-762.0,0.00059999,120]
[340734894,1729749060883,-4223.57,0.00059999,120]
[340734895,1729749060894,-500.0,0.00059999,120]
[340734896,1729749060905,-500.0,0.00059999,120]
[340734897,1729749060916,-1658.3,0.00059999,120]
[340734898,1729749060927,-1021.59,0.00059999,120]
[340734899,1729749060938,-504467.55104438,0.0006,10]
[340734900,1729749060948,-932.35101427,0.0006,120]
[340734901,1729749060959,-215.0,0.0006,120]
[340734902,1729749060969,-299.99011051,0.0006,120]
[340734903,1729749060978,-2719.47573701,0.0006,120]
[340734904,1729749060987,-150.0,0.0006,120]
[340734905,1729749060996,-154.15015549,0.0006,32]
[340734906,1729749061006,-85624.0017566,0.0006,2]
[340734907,1729749061015,-2290.71764703,0.0006,7]
[340734908,1729749061025,-157.91571405,0.0006,30]
[340734909,1729749061034,-151.0,0.0006,120]
[340734910,1729749061043,-150.0,0.0006,120]
[340734911,1729749061053,-4652.25146085,0.0006,98]
[340734912,1729749061065,-7500.0,0.0006,120]
[340734913,1729749061075,-12500.0,0.0006,120]
[340734914,1729749061086,-7500.0,0.0006,120]
[340734915,1729749061096,-502.813379,0.0006,120]
[340734916,1729749061107,-7500.0,0.0006,120]
[340734917,1729749061117,-4130.2,0.0006,120]
[340734918,1729749061130,-500.09,0.0006,120]
[340734919,1729749061139,-2798.19,0.0006,120]
[340734920,1729749061150,-3099.23216469,0.0006,97]
[340734921,1729749061159,-153.91,0.0006,120]
[340734922,1729749061170,-153.91,0.0006,120]
[340734923,1729749061179,-153.91,0.0006,120]
[340734924,1729749061188,-153.91,0.0006,120]
[340734925,1729749061198,-153.91,0.0006,120]
[340734926,1729749061207,-818.0,0.000601,50]
[340734927,1729749061217,-500.0,0.00060106,120]
[340734928,1729749061227,-539.08,0.00060106,120]
[340734929,1729749061237,-500.0,0.00060106,120]
[340734930,1729749061247,-7500.0,0.00060125,120]
[340734931,1729749061256,-12500.0,0.00060125,120]
[340734932,1729749061266,-500.0,0.00060247,120]
[340734933,1729749061276,-500.0,0.00060247,120]
[340734934,1729749061286,-500.0,0.00060247,120]
[340734935,1729749061296,-1786.86,0.00060247,120]
[340734936,1729749061305,-613.66,0.00060247,120]
[340734937,1729749061315,-150.0,0.00060248,120]
[340734938,1729749061324,-13549.0,0.00060248,120]
[340734939,1729749061334,-150.0,0.00060248,120]
[340734940,1729749061344,-1152.0,0.00060248,120]
[340734941,1729749061353,-7500.0,0.0006025,120]
[340734942,1729749061362,-12500.0,0.0006025,120]
[340734943,1729749061371,-2000.0,0.00060274,30]
[340734944,1729749061380,-150.0,0.00060275,120]
[340734945,1729749061389,-832.96,0.00060374,120]
[340734946,1729749061398,-7500.0,0.00060375,120]
[340734947,1729749061407,-12500.0,0.00060375,120]
[340734948,1729749061416,-2000.0,0.00060456,15]
[340734949,1729749061425,-200.0,0.00060456,15]
[340734950,1729749061434,-2000.0,0.00060456,15]
[340734951,1729749061443,-200.0,0.00060456,15]
[340734952,1729749061453,-173.102414,0.00060498,120]
[340734953,1729749061466,-677.9,0.00060499,120]
[340734954,1729749061476,-541.6,0.00060499,120]
[340734955,1729749061485,-715.04,0.00060499,120]
[340734956,1729749061495,-500.0,0.00060499,120]
[340734957,1729749061505,-571.97,0.00060499,120]
[340734958,1729749061516,-1043.89,0.00060499,120]
[340734959,1729749061526,-1796.36,0.00060499,120]
[340734960,1729749061537,-500.0,0.00060499,120]
[340734961,1729749061546,-500.0,0.00060499,120]
[340734962,1729749061555,-7500.0,0.000605,120]
[340734963,1729749061564,-12500.0,0.000605,120]
[340734964,1729749061573,-5156.887843,0.000605,2]
[340734965,1729749061582,-1449.1067092,0.000605,2]
[340734966,1729749061591,-8129.7423457,0.000605,2]
[340734967,1729749061600,-2066.4719614,0.00060542,2]
[340734968,1729749061609,-70563.13388,0.00060542,2]
[340734969,1729749061618,-150.68,0.00060548,60]
[340734970,1729749061626,-7500.0,0.00060625,120]
[340734971,1729749061635,-12500.0,0.00060625,120]
[340734972,1729749061645,-914.68,0.00060728,2]
[340734973,1729749061654,-3388.93282411,0.00060736,15]
[340734974,1729749061663,-510.40538348,0.00060749,120]
[340734975,1729749061672,-539.08,0.00060749,120]
[340734976,1729749061682,-500.0,0.00060749,120]
[340734977,1729749061691,-7500.0,0.0006075,120]
[340734978,1729749061699,-12500.0,0.0006075,120]
[340734979,1729749061708,-500.0,0.00060874,120]
[340734980,1729749061717,-500.0,0.00060874,120]
[340734981,1729749061727,-1747.87,0.00060874,120]
[340734982,1729749061737,-916.98,0.00060874,120]
[340734983,1729749061746,-1749.13,0.00060874,120]
[340734984,1729749061755,-762.0,0.00060874,120]
[340734985,1729749061764,-4223.57,0.00060874,120]
[340734986,1729749061773,-500.0,0.00060874,120]
[340734987,1729749061783,-1658.3,0.00060874,120]
[340734988,1729749061791,-7500.0,0.00060875,120]
[340734989,1729749061800,-12500.0,0.00060875,120]
[340734990,1729749061809,-500.0,0.00060909,120]
[340734991,1729749061818,-500.0,0.00060909,120]
[340734992,1729749061827,-500.0,0.00060909,120]
[340734993,1729749061836,-1786.86,0.00060909,120]
[340734994,1729749061847,-613.66,0.00060909,120]
[340734995,1729749061856,-500.0,0.0006091,120]
[340734996,1729749061865,-500.0,0.0006091,120]
[340734997,1729749061874,-500.0,0.0006091,120]
[340734998,1729749061883,-217.00760207,0.0006091,120]
[340734999,1729749061893,-624.11,0.0006091,120]
[340735000,1729749061902,-719.38,0.0006091,120]
[340735001,1729749061911,-500.0,0.0006091,120]
[340735002,1729749061920,-1021.59,0.0006091,120]
[340735003,1729749061929,-160.14,0.00060959,120]
[340735004,1729749061939,-1328.73,0.00060999,120]
[340735005,1729749061948,-832.96,0.00060999,120]
[340735006,1729749061957,-24866.6875874,0.00061,120]
[340735007,1729749061966,-9429.77338451,0.00061,120]
[340735008,1729749061981,-7500.0,0.00061,120]
[340735009,1729749061990,-12500.0,0.00061,120]
[340735010,1729749061999,-2000.0,0.00061061,15]
[340735011,1729749062007,-200.0,0.00061061,15]
[340735012,1729749062017,-2000.0,0.00061061,15]
[340735013,1729749062026,-200.0,0.00061061,15]
[340735014,1729749062035,-1182.44141663,0.000611,120]
[340735015,1729749062045,-7500.0,0.00061125,120]
[340735016,1729749062054,-625.0,0.00061125,120]
[340735017,1729749062064,-150.0,0.000612,120]
[340735018,1729749062073,-150.0,0.000612,120]
[340735019,1729749062083,-150.0,0.000612,120]
[340735020,1729749062092,-152.08419042,0.000612,120]
[340735021,1729749062101,-153.57363667,0.000612,120]
[340735022,1729749062110,-152.68619526,0.000612,120]
[340735023,1729749062119,-7500.0,0.0006125,120]
[340735024,1729749062129,-357.97359898,0.00061374,120]
[340735025,1729749062138,-7500.0,0.00061375,120]
[340735026,1729749062147,-150.0,0.00061494,120]
[340735027,1729749062157,-173.102414,0.00061498,120]
[340735028,1729749062166,-7500.0,0.000615,120]
[340735029,1729749062175,-376.12856158,0.000616,30]
[340735030,1729749062185,-677.9,0.00061624,120]
[340735031,1729749062194,-541.6,0.00061624,120]
[340735032,1729749062203,-715.04,0.00061624,120]
[340735033,1729749062212,-500.0,0.00061624,120]
[340735034,1729749062223,-571.97,0.00061624,120]
[340735035,1729749062232,-1043.89,0.00061624,120]
[340735036,1729749062242,-500.0,0.00061624,120]
[340735037,1729749062251,-7500.0,0.00061625,120]
[340735038,1729749062261,-500.0,0.00061748,120]
[340735039,1729749062270,-322.07430282,0.00061748,120]
[340735040,1729749062279,-500.0,0.00061748,120]
[340735041,1729749062288,-624.11,0.00061748,120]
[340735042,1729749062298,-719.38,0.00061748,120]
[340735043,1729749062308,-500.0,0.00061748,120]
[340735044,1729749062319,-1021.59,0.00061748,120]
[340735045,1729749062329,-500.0,0.00061749,120]
[340735046,1729749062338,-1747.87,0.00061749,120]
[340735047,1729749062348,-1796.36,0.00061749,120]
[340735048,1729749062357,-7500.0,0.0006175,120]
[340735049,1729749062367,-150.0,0.00061818,120]
[340735050,1729749062376,-10000.74,0.0006183,120]
[340735051,1729749062386,-916.98,0.00061874,120]
[340735052,1729749062395,-1749.13,0.00061874,120]
[340735053,1729749062404,-762.0,0.00061874,120]
[340735054,1729749062414,-4223.57,0.00061874,120]
[340735055,1729749062423,-500.0,0.00061874,120]
[340735056,1729749062432,-1658.3,0.00061874,120]
[340735057,1729749062441,-7500.0,0.00061875,120]
[340735058,1729749062451,-150.0,0.0006188,120]
[340735059,1729749062460,-500.0,0.00061999,120]
[340735060,1729749062469,-1767.0,0.00062,120]
[340735061,1729749062478,-7500.0,0.00062,120]
[340735062,1729749062487,-7500.0,0.00062125,120]
[340735063,1729749062497,-2000.0,0.00062192,30]
[340735064,1729749062506,-7500.0,0.0006225,120]
[340735065,1729749062516,-7500.0,0.00062375,120]
[340735066,1729749062527,-150.0,0.00062436,120]
[340735067,1729749062538,-539.08,0.00062459,120]
[340735068,1729749062547,-500.0,0.00062459,120]
[340735069,1729749062557,-30000.0,0.0006246,120]
[340735070,1729749062568,-2000.0,0.00062466,30]
[340735071,1729749062578,-832.96,0.00062499,120]
[340735072,1729749062589,-500.0,0.00062499,120]
[340735073,1729749062598,-500.0,0.00062499,120]
[340735074,1729749062608,-500.0,0.00062499,120]
[340735075,1729749062618,-1786.86,0.00062499,120]
[340735076,1729749062629,-613.66,0.00062499,120]
[340735077,1729749062639,-7500.0,0.000625,120]
[340735078,1729749062649,-3388.93282411,0.00062527,15]
[340735079,1729749062658,-500.0,0.00062549,120]
[340735080,1729749062667,-500.0,0.00062549,120]
[340735081,1729749062676,-500.0,0.00062549,120]
[340735082,1729749062686,-1747.87,0.00062549,120]
[340735083,1729749062778,-624.11,0.00062549,120]
[340735084,1729749062788,-719.38,0.00062549,120]
[340735085,1729749062797,-181.17332031,0.00062549,120]
[340735086,1729749062806,-1021.59,0.00062549,120]
[340735087,1729749062815,-34656.0,0.0006255,120]
[340735088,1729749062824,-150.0,0.0006256,120]
[340735089,1729749062833,-1457.2,0.00062625,120]
[340735090,1729749062843,-158.37903487,0.00062676,28]
[340735091,1729749062854,-150.0,0.00062714,120]
[340735092,1729749062863,-2000.0,0.0006274,30]
[340735093,1729749062872,-172.77066497,0.00062767,90]
[340735094,1729749062881,-677.9,0.00062787,120]
[340735095,1729749062890,-541.6,0.00062787,120]
[340735096,1729749062899,-715.04,0.00062787,120]
[340735097,1729749062908,-500.0,0.00062787,120]
[340735098,1729749062918,-571.97,0.00062787,120]
[340735099,1729749062927,-1043.89,0.00062787,120]
[340735100,1729749062937,-500.0,0.00062787,120]
[340735101,1729749062946,-30000.0,0.0006287,120]
[340735102,1729749062956,-200.0,0.000629,120]
[340735103,1729749062965,-502.813379,0.000629,120]
[340735104,1729749062976,-150.0,0.000629,120]
[340735105,1729749062985,-1853.3615816,0.00062913,3]
[340735106,1729749062994,-65446.5457258,0.00062913,3]
[340735107,1729749063003,-4782.9578628,0.00062913,3]
[340735108,1729749063012,-1240.9999962,0.00062913,3]
[340735109,1729749063021,-6962.2272511,0.00062913,3]
[340735110,1729749063031,-1796.36,0.00062929,120]
[340735111,1729749063040,-30000.0,0.0006293,120]
[340735112,1729749063050,-539.08,0.00062951,120]
[340735113,1729749063059,-463.33273211,0.00062951,120]
[340735114,1729749063069,-832.96,0.00062952,120]
[340735115,1729749063078,-500.0,0.00062954,120]
[340735116,1729749063087,-916.98,0.00062954,120]
[340735117,1729749063097,-1749.13,0.00062954,120]
[340735118,1729749063106,-762.0,0.00062954,120]
[340735119,1729749063116,-4223.57,0.00062954,120]
[340735120,1729749063125,-500.0,0.00062954,120]
[340735121,1729749063135,-1658.3,0.00062954,120]
[340735122,1729749063145,-500.0,0.00062955,120]
[340735123,1729749063154,-479.10277825,0.00062955,120]
[340735124,1729749063163,-351.19315958,0.00062955,120]
[340735125,1729749063172,-1786.86,0.00062955,120]
[340735126,1729749063182,-613.66,0.00062955,120]
[340735127,1729749063191,-500.0,0.00062956,120]
[340735128,1729749063200,-243.56242928,0.00062956,120]
[340735129,1729749063210,-500.0,0.00062956,120]
[340735130,1729749063220,-1747.87,0.00062956,120]
[340735131,1729749063230,-624.11,0.00062956,120]
[340735132,1729749063240,-719.38,0.00062956,120]
[340735133,1729749063250,-1640.2512018,0.00062956,3]
[340735134,1729749063260,-60329.9575717,0.00062956,3]
[340735135,1729749063270,-4409.0278827,0.00062956,3]
[340735136,1729749063280,-1032.8932833,0.00062956,3]
[340735137,1729749063289,-1021.59,0.00062956,120]
[340735138,1729749063299,-5794.7121565,0.00062956,3]
[340735139,1729749063309,-647.11,0.00062971,120]
[340735140,1729749063318,-677.9,0.00062972,120]
[340735141,1729749063328,-541.6,0.00062972,120]
[340735142,1729749063338,-715.04,0.00062972,120]
[340735143,1729749063347,-500.0,0.00062972,120]
[340735144,1729749063357,-571.97,0.00062972,120]
[340735145,1729749063366,-1043.89,0.00062972,120]
[340735146,1729749063375,-500.0,0.00062972,120]
[340735147,1729749063385,-914.68,0.00062992,2]
[340735148,1729749063394,-500.0,0.00062995,120]
[340735149,1729749063404,-916.98,0.00062995,120]
[340735150,1729749063413,-1796.36,0.00062995,120]
[340735151,1729749063422,-1749.13,0.00062995,120]
[340735152,1729749063431,-762.0,0.00062995,120]
[340735153,1729749063440,-4223.57,0.00062995,120]
[340735154,1729749063450,-500.0,0.00062995,120]
[340735155,1729749063460,-1658.3,0.00062995,120]
[340735156,1729749063470,-110089.0124591,0.00062996,120]
[340735157,1729749063479,-832.96,0.00062996,120]
[340735158,1729749063489,-500.0,0.00062996,120]
[340735159,1729749063498,-1786.86,0.00062996,120]
[340735160,1729749063508,-539.08,0.00062996,120]
[340735161,1729749063517,-613.66,0.00062996,120]
[340735162,1729749063526,-832.96,0.00062997,120]
[340735163,1729749063535,-514.66640869,0.00062997,120]
[340735164,1729749063545,-677.9,0.00062997,120]
[340735165,1729749063554,-677.9,0.00062997,120]
[340735166,1729749063563,-677.9,0.00062997,120]
[340735167,1729749063572,-677.9,0.00062997,120]
[340735168,1729749063581,-678.1256899,0.00062997,120]
[340735169,1729749063590,-500.0,0.00062997,120]
[340735170,1729749063600,-541.6,0.00062997,120]
[340735171,1729749063611,-541.6,0.00062997,120]
[340735172,1729749063620,-541.6,0.00062997,120]
[340735173,1729749063629,-541.6,0.00062997,120]
[340735174,1729749063639,-541.82442768,0.00062997,120]
[340735175,1729749063651,-715.04,0.00062997,120]
[340735176,1729749063663,-715.04,0.00062997,120]
[340735177,1729749063673,-715.04,0.00062997,120]
[340735178,1729749063682,-715.04,0.00062997,120]
[340735179,1729749063692,-715.11033031,0.00062997,120]
[340735180,1729749063701,-500.0,0.00062997,120]
[340735181,1729749063710,-500.0,0.00062997,120]
[340735182,1729749063720,-1747.87,0.00062997,120]
[340735183,1729749063729,-1747.87,0.00062997,120]
[340735184,1729749063739,-916.98,0.00062997,120]
[340735185,1729749063748,-624.11,0.00062997,120]
[340735186,1729749063757,-624.11,0.00062997,120]
[340735187,1729749063767,-624.11,0.00062997,120]
[340735188,1729749063776,-624.11,0.00062997,120]
[340735189,1729749063785,-624.11,0.00062997,120]
[340735190,1729749063794,-624.32481429,0.00062997,120]
[340735191,1729749063803,-500.0,0.00062997,120]
[340735192,1729749063812,-514.26412791,0.00062997,120]
[340735193,1729749063821,-500.0,0.00062997,120]
[340735194,1729749063830,-719.38,0.00062997,120]
[340735195,1729749063839,-719.38,0.00062997,120]
[340735196,1729749063853,-719.38,0.00062997,120]
[340735197,1729749063862,-719.38,0.00062997,120]
[340735198,1729749063871,-719.38,0.00062997,120]
[340735199,1729749063881,-719.41730594,0.00062997,120]
[340735200,1729749063891,-571.97,0.00062997,120]
[340735201,1729749063900,-571.97,0.00062997,120]
[340735202,1729749063909,-571.97,0.00062997,120]
[340735203,1729749063919,-571.97,0.00062997,120]
[340735204,1729749063929,-572.01764438,0.00062997,120]
[340735205,1729749063939,-1043.89,0.00062997,120]
[340735206,1729749063948,-1043.89,0.00062997,120]
[340735207,1729749063957,-1043.89,0.00062997,120]
[340735208,1729749063967,-1043.89,0.00062997,120]
[340735209,1729749063976,-1044.00539264,0.00062997,120]
[340735210,1729749063985,-1796.36,0.00062997,120]
[340735211,1729749063995,-1749.13,0.00062997,120]
[340735212,1729749064004,-500.0,0.00062997,120]
[340735213,1729749064013,-500.0,0.00062997,120]
[340735214,1729749064022,-500.0,0.00062997,120]
[340735215,1729749064031,-500.0,0.00062997,120]
[340735216,1729749064040,-293.49122637,0.00062997,120]
[340735217,1729749064049,-1786.86,0.00062997,120]
[340735218,1729749064058,-762.0,0.00062997,120]
[340735219,1729749064067,-539.08,0.00062997,120]
[340735220,1729749064077,-4223.57,0.00062997,120]
[340735221,1729749064086,-500.0,0.00062997,120]
[340735222,1729749064095,-613.66,0.00062997,120]
[340735223,1729749064106,-1658.3,0.00062997,120]
[340735224,1729749064115,-1021.59,0.00062997,120]
[340735225,1729749064125,-1021.59,0.00062997,120]
[340735226,1729749064134,-1021.59,0.00062997,120]
[340735227,1729749064143,-1021.59,0.00062997,120]
[340735228,1729749064153,-1021.59,0.00062997,120]
[340735229,1729749064162,-1021.71014997,0.00062997,120]
[340735230,1729749064171,-351245.34558646,0.00062998,30]
[340735231,1729749064181,-916.98,0.00062998,120]
[340735232,1729749064190,-1796.36,0.00062998,120]
[340735233,1729749064199,-1749.13,0.00062998,120]
[340735234,1729749064208,-762.0,0.00062998,120]
[340735235,1729749064217,-4223.57,0.00062998,120]
[340735236,1729749064226,-500.0,0.00062998,120]
[340735237,1729749064236,-1658.3,0.00062998,120]
[340735238,1729749064245,-1328.73,0.00062999,120]
[340735239,1729749064255,-1328.73,0.00062999,120]
[340735240,1729749064264,-832.96,0.00062999,120]
[340735241,1729749064273,-832.96,0.00062999,120]
[340735242,1729749064282,-500.0,0.00062999,120]
[340735243,1729749064292,-500.0,0.00062999,120]
[340735244,1729749064302,-498.46492297,0.00062999,120]
[340735245,1729749064311,-500.0,0.00062999,120]
[340735246,1729749064320,-500.0,0.00062999,120]
[340735247,1729749064329,-1747.87,0.00062999,120]
[340735248,1729749064338,-1747.87,0.00062999,120]
[340735249,1729749064348,-916.98,0.00062999,120]
[340735250,1729749064357,-916.98,0.00062999,120]
[340735251,1729749064366,-916.98,0.00062999,120]
[340735252,1729749064376,-916.98,0.00062999,120]
[340735253,1729749064385,-917.15903345,0.00062999,120]
[340735254,1729749064394,-637.36766247,0.00062999,120]
[340735255,1729749064404,-1796.36,0.00062999,120]
[340735256,1729749064413,-1796.36,0.00062999,120]
[340735257,1729749064422,-1796.36,0.00062999,120]
[340735258,1729749064432,-1796.36,0.00062999,120]
[340735259,1729749064524,-1796.38523398,0.00062999,120]
[340735260,1729749064533,-1749.13,0.00062999,120]
[340735261,1729749064543,-1749.13,0.00062999,120]
[340735262,1729749064553,-1749.13,0.00062999,120]
[340735263,1729749064562,-1749.13,0.00062999,120]
[340735264,1729749064572,-1749.31236708,0.00062999,120]
[340735265,1729749064582,-1786.86,0.00062999,120]
[340735266,1729749064591,-1786.86,0.00062999,120]
[340735267,1729749064601,-1786.86,0.00062999,120]
[340735268,1729749064610,-1786.86,0.00062999,120]
[340735269,1729749064620,-1786.97346849,0.00062999,120]
[340735270,1729749064629,-762.0,0.00062999,120]
[340735271,1729749064639,-762.0,0.00062999,120]
[340735272,1729749064648,-762.0,0.00062999,120]
[340735273,1729749064657,-762.0,0.00062999,120]
[340735274,1729749064666,-762.03700951,0.00062999,120]
[340735275,1729749064676,-539.08,0.00062999,120]
[340735276,1729749064686,-539.08,0.00062999,120]
[340735277,1729749064695,-539.08,0.00062999,120]
[340735278,1729749064704,-539.08,0.00062999,120]
[340735279,1729749064713,-539.18868059,0.00062999,120]
[340735280,1729749064724,-4223.57,0.00062999,120]
[340735281,1729749064733,-4223.57,0.00062999,120]
[340735282,1729749064742,-4223.57,0.00062999,120]
[340735283,1729749064751,-4223.57,0.00062999,120]
[340735284,1729749064761,-4223.75657273,0.00062999,120]
[340735285,1729749064771,-500.0,0.00062999,120]
[340735286,1729749064780,-500.0,0.00062999,120]
[340735287,1729749064789,-500.0,0.00062999,120]
[340735288,1729749064798,-500.0,0.00062999,120]
[340735289,1729749064808,-154.38646076,0.00062999,120]
[340735290,1729749064817,-613.66,0.00062999,120]
[340735291,1729749064826,-613.66,0.00062999,120]
[340735292,1729749064835,-613.66,0.00062999,120]
[340735293,1729749064846,-613.66,0.00062999,120]
[340735294,1729749064856,-613.73328382,0.00062999,120]
[340735295,1729749064866,-1658.3,0.00062999,120]
[340735296,1729749064876,-1658.3,0.00062999,120]
[340735297,1729749064885,-1658.3,0.00062999,120]
[340735298,1729749064895,-1658.3,0.00062999,120]
[340735299,1729749064904,-1658.33403342,0.00062999,120]
[340735300,1729749064913,-418981.24,0.00063,120]
[340735301,1729749064923,-200.0,0.00063,120]
[340735302,1729749064932,-717.71149128,0.00063,120]
[340735303,1729749064941,-10100.0,0.00063,120]
[340735304,1729749064950,-1000.0,0.00063,120]
[340735305,1729749064959,-2000.0,0.00063013,120]
[340735306,1729749064968,-500.0,0.00063013,120]
[340735307,1729749064978,-500.0,0.00063013,120]
[340735308,1729749064987,-500.0,0.00063013,120]
[340735309,1729749064996,-500.0,0.00063013,120]
[340735310,1729749065006,-500.0,0.00063013,120]
[340735311,1729749065015,-500.0,0.00063013,120]
[340735312,1729749065024,-500.0,0.00063013,120]
[340735313,1729749065034,-507.32454892,0.00063013,120]
[340735314,1729749065043,-214.07,0.00063014,120]
[340735315,1729749065052,-2000.0,0.00063014,30]
[340735316,1729749065061,-150.0,0.00063055,120]
[340735317,1729749065070,-150.0,0.000631,2]
[340735318,1729749065079,-255.25271466,0.00063134,2]
[340735319,1729749065088,-9108.29163947,0.00063237,2]
[340735320,1729749065097,-4117.2520277,0.00063239,2]
[340735321,1729749065106,-150.0,0.0006324,120]
[340735322,1729749065115,-326.196,0.00063248,120]
[340735323,1729749065124,-150.0,0.00063248,120]